bitfinex/quotes_SOLUSD_20250721
["timestamp","ask_amount","ask_price","bid_price","bid_amount"]
[1753103016588,17.45468397,190.86,190.85,0.03]
[1753103017070,22.69412649,190.86,190.85,0.03]
[1753103018070,32.81712251,190.86,190.85,0.03]
[1753103018992,17.45468397,190.86,190.85,0.03]
[1753103019198,32.81712251,190.86,190.85,0.03]
[1753103019783,0.67,190.88,190.85,0.03]
[1753103019983,10.79299602,190.86,190.85,0.03]
[1753103020778,16.03243854,190.86,190.85,0.03]
[1753103020975,0.67,190.86,190.85,0.03]
[1753103021188,38.12,190.86,190.85,0.03]
[1753103021392,54.90468397,190.86,190.85,0.03]
[1753103021894,65.02767999,190.86,190.85,0.03]
[1753103022091,55.57468397,190.86,190.85,0.03]
[1753103022481,65.69767999,190.86,190.85,0.03]
[1753103023203,55.57468397,190.86,190.85,0.03]
[1753103023375,60.81412649,190.86,190.85,0.03]
[1753103023789,55.57468397,190.86,190.85,0.03]
[1753103024001,54.90468397,190.86,190.85,0.03]
[1753103024202,16.78468397,190.86,190.85,0.03]
[1753103024500,54.90468397,190.86,190.85,0.03]
[1753103024697,16.89768415,190.86,190.85,0.03]
[1753103024902,16.89768415,190.86,190.85,16.05271307]
[1753103025104,38.23300018,190.86,190.85,0.03]
[1753103025401,54.99768415,190.86,190.85,10.15299602]
[1753103025600,55.01768415,190.86,190.85,0.03]
[1753103025798,16.89768415,190.86,190.85,0.03]
[1753103026096,55.01768415,190.86,190.85,0.03]
[1753103027674,16.89768415,190.86,190.85,10.81299602]
[1753103028085,55.05768415,190.86,190.85,10.81299602]
[1753103029900,55.05768415,190.86,190.85,16.05271307]
[1753103030110,16.89768415,190.86,190.85,16.05271307]
[1753103030296,0.11300018,190.86,190.85,16.05271307]
[1753103030485,38.27300018,190.86,190.85,5.92971705]
[1753103030809,38.27300018,190.86,190.85,16.05271307]
[1753103031106,55.05768415,190.86,190.85,0.03]
[1753103031780,16.89768415,190.86,190.85,10.15299602]
[1753103031978,55.05768415,190.86,190.85,10.81299602]
[1753103032406,38.25300018,190.86,190.85,10.81299602]
[1753103034421,38.25300018,190.86,190.85,16.05271307]
[1753103035042,38.25300018,190.86,190.85,15.39271307]
[1753103035187,38.25300018,190.86,190.85,5.26971705]
[1753103035511,38.25300018,190.86,190.85,15.39271307]
[1753103035718,38.25300018,190.86,190.85,10.15299602]
[1753103035885,38.25300018,190.86,190.85,15.39271307]
[1753103036487,38.25300018,190.86,190.85,16.05271307]
[1753103038618,38.25300018,190.86,190.85,15.39271307]
[1753103039711,55.03768415,190.86,190.85,10.15299602]
[1753103040427,71.07012269,190.86,190.85,0.03]
[1753103040636,60.94712667,190.86,190.85,0.03]
[1753103040798,71.07012269,190.86,190.85,0.03]
[1753103041196,16.78468397,190.85,190.73,0.67]
[1753103041428,16.78468397,190.8,190.74,26.0]
[1753103041617,38.04,190.79,190.75,10.12299602]
[1753103041820,38.7,190.79,190.75,10.12299602]
[1753103042019,38.7,190.79,190.74,26.0]
[1753103042226,38.7,190.79,190.75,10.12299602]
[1753103042565,0.66,190.78,190.7,6.3526]
[1753103042741,0.66,190.78,190.7,5.24376913]
[1753103042742,16.78468397,190.75,190.7,5.24376913]
[1753103043036,38.2,190.77,190.7,5.24376913]
[1753103043037,16.78468397,190.73,190.72,10.12299602]
[1753103043333,54.98468397,190.73,190.72,36.79299602]
[1753103043547,54.98468397,190.73,190.72,26.67]
[1753103043836,65.76767999,190.73,190.68,15.36738452]
[1753103044128,16.78468397,190.71,190.67,10.12299602]
[1753103044344,38.18,190.7,190.67,10.12299602]
[1753103044698,0.09807604,190.68,190.67,15.36765957]
[1753103044903,38.29807604,190.68,190.66,5.2448783]
[1753103045138,38.29807604,190.68,190.67,10.12299602]
[1753103045307,38.29807604,190.68,190.67,0.67]
[1753103045308,0.09807604,190.68,190.67,0.67]
[1753103045510,38.33807604,190.68,190.67,10.79299602]
[1753103045708,0.09807604,190.68,190.67,10.79299602]
[1753103045930,0.09807604,190.68,190.67,0.67]
[1753103046137,0.09807604,190.68,190.67,10.79299602]
[1753103046424,1e-08,190.69,190.68,41.36738452]
[1753103046626,1e-08,190.69,190.68,42.03738452]
[1753103046825,1e-08,190.69,190.68,5.9143885]
[1753103047030,38.34000001,190.69,190.68,16.03738452]
[1753103047321,38.34000001,190.69,190.68,42.03738452]
[1753103049115,38.34000001,190.69,190.68,16.03738452]
[1753103049512,1e-08,190.69,190.68,16.03738452]
[1753103050530,0.10236352,190.7,190.68,16.03738452]
[1753103050531,1e-08,190.71,190.69,10.12299602]
[1753103050737,1.511,190.81,190.7,51.48983052]
[1753103051031,1e-08,190.74,190.73,26.52829204]
[1753103051235,38.3,190.78,190.75,26.0]
[1753103051529,38.3,190.78,190.75,36.12299602]
[1753103051713,38.3,190.78,190.75,36.79299602]
[1753103052031,0.66,190.83,190.75,36.79299602]
[1753103052330,38.3,190.87,190.79,26.0]
[1753103052532,38.3,190.87,190.86,10.12299602]
[1753103053033,38.96,190.87,190.86,10.12299602]
[1753103053205,38.3,190.87,190.86,10.12299602]
[1753103053619,38.96,190.87,190.86,10.12299602]
[1753103053803,38.3,190.87,190.86,10.12299602]
[1753103054213,38.3,190.87,190.83,31.2402662]
[1753103054214,38.96,190.87,190.85,10.12299602]
[1753103054538,17.44468397,190.86,190.85,10.12299602]
[1753103054907,17.44468397,190.86,190.77,0.67]
[1753103055240,0.66,190.88,190.85,10.12299602]
[1753103055532,38.28,190.87,190.86,10.12299602]
[1753103055713,16.78468397,190.86,190.83,10.12299602]
[1753103055914,0.66,190.85,190.83,10.12299602]
[1753103057031,0.66,190.85,190.84,10.12299602]
[1753103057227,0.66,190.85,190.83,10.12299602]
[1753103058407,16.78468397,190.86,190.84,10.12299602]
[1753103058608,16.78468397,190.86,190.83,10.12299602]
[1753103058809,0.66,190.85,190.83,10.12299602]
[1753103060036,16.78468397,190.86,190.83,10.12299602]
[1753103060220,17.44468397,190.86,190.83,10.12299602]
[1753103060531,17.44468397,190.86,190.84,10.12299602]
[1753103061231,16.78468397,190.82,190.76,10.12299602]
[1753103061440,16.78468397,190.8,190.76,10.12299602]
[1753103061933,0.66,190.79,190.76,10.12299602]
[1753103062141,38.2,190.78,190.76,10.12299602]
[1753103062512,38.86,190.78,190.75,10.12299602]
[1753103062711,38.86,190.78,190.76,10.12299602]
[1753103062913,38.2,190.78,190.77,10.12299602]
[1753103063236,38.16,190.78,190.77,10.79299602]
[1753103063610,38.16,190.78,190.77,10.12299602]
[1753103063810,38.16,190.78,190.74,5.91261534]
[1753103064036,38.16,190.78,190.77,10.12299602]
[1753103064225,38.16,190.78,190.77,15.36491036]
[1753103064535,38.25803387,190.78,190.77,16.03491036]
[1753103064914,0.09803387,190.78,190.77,16.03491036]
[1753103065207,0.09803387,190.78,190.77,42.03491036]
[1753103065415,0.09803387,190.78,190.77,31.24191434]
[1753103065647,0.09803387,190.78,190.77,42.03491036]
[1753103066336,0.09803387,190.78,190.77,31.91191434]
[1753103066547,0.09803387,190.78,190.77,42.03491036]
[1753103069716,0.09803387,190.78,190.77,42.06491036]
[1753103070641,0.11448919,190.79,190.77,23.56401846]
[1753103070940,0.11448919,190.79,190.78,10.79299602]
[1753103071236,0.10464974,190.81,190.79,26.0]
[1753103071437,0.11283633,190.82,190.8,10.64710503]
[1753103071740,0.11283633,190.82,190.81,10.12299602]
[1753103071914,0.11283633,190.82,190.81,10.77299602]
[1753103072527,0.11283633,190.82,190.81,16.01381149]
[1753103072928,0.11283633,190.82,190.81,15.36381149]
[1753103073940,0.11283633,190.82,190.81,10.12299602]
[1753103074244,0.11283633,190.82,190.81,15.36381149]
[1753103076540,0.11283633,190.82,190.81,16.01381149]
[1753103077343,0.11283633,190.82,190.81,15.36381149]
[1753103079038,0.11283633,190.82,190.81,16.01381149]
[1753103080438,0.11283633,190.82,190.81,5.24081547]
[1753103080624,0.11283633,190.82,190.81,16.01381149]
[1753103080825,0.79283633,190.82,190.79,5.2411486]
[1753103081024,0.11283633,190.82,190.79,5.2411486]
[1753103081220,0.11283633,190.82,190.81,10.12299602]
[1753103082021,0.79283633,190.82,190.81,10.12299602]
[1753103082319,0.11283633,190.82,190.81,15.36381149]
[1753103082638,0.11283633,190.82,190.81,10.12299602]
[1753103083353,0.79283633,190.82,190.81,10.12299602]
[1753103084433,0.68,190.82,190.81,36.12299602]
[1753103084632,0.77908687,190.82,190.81,36.12299602]
[1753103085022,0.77908687,190.82,190.81,26.0]
[1753103085241,0.77908687,190.82,190.81,36.12299602]
[1753103085440,0.77908687,190.82,190.77,0.03]
[1753103085752,0.68,190.81,190.8,10.12299602]
[1753103085947,0.68,190.81,190.77,31.27189334]
[1753103086137,0.68,190.8,190.77,31.27189334]
[1753103086345,0.68,190.8,190.79,26.0]
[1753103087351,16.88377084,190.82,190.79,26.0]
[1753103087535,17.56377084,190.82,190.79,26.0]
[1753103088036,0.68,190.81,190.79,26.0]
[1753103090523,0.09908687,190.82,190.8,10.12299602]
[1753103090724,0.09908687,190.82,190.81,10.12299602]
[1753103091054,38.01908687,190.82,190.81,10.12299602]
[1753103091346,38.01908687,190.82,190.81,6.91818466]
[1753103093047,0.15908687,190.82,190.81,7.56818466]
[1753103094148,0.15908687,190.82,190.81,12.80900013]
[1753103094731,0.15908687,190.82,190.81,38.80900013]
[1753103096056,0.15908687,190.82,190.81,31.89081547]
[1753103096230,0.15908687,190.82,190.81,38.80900013]
[1753103097628,0.15908687,190.82,190.81,12.80900013]
[1753103097833,0.1150578,190.84,190.83,26.0]
[1753103098031,0.1150578,190.84,190.83,32.91818466]
[1753103098234,0.1150578,190.84,190.83,33.56818466]
[1753103099229,0.17193848,190.85,190.83,33.56818466]
[1753103099435,0.16273065,190.86,190.85,32.91818466]
[1753103099949,0.16273065,190.86,190.85,38.80790171]
[1753103100134,0.16273065,190.86,190.85,31.88971705]
[1753103100339,0.16273065,190.86,190.85,38.15790171]
[1753103100743,17.62741462,190.86,190.85,6.91818466]
[1753103100932,17.62741462,190.86,190.83,26.0]
[1753103101246,16.94741462,190.86,190.85,6.91818466]
[1753103101845,17.62741462,190.86,190.84,26.0]
[1753103102047,17.62741462,190.86,190.85,32.91818466]
[1753103102273,16.78468397,190.85,190.76,0.71]
[1753103102585,16.78468397,190.83,190.78,6.91818466]
[1753103102733,37.84,190.82,190.8,6.91818466]
[1753103102938,37.84,190.81,190.79,5.27133585]
[1753103103131,37.84,190.81,190.8,10.14790093]
[1753103103955,37.84,190.81,190.8,15.38899107]
[1753103104135,37.84,190.81,190.8,16.09899107]
[1753103104660,37.9473623,190.81,190.8,15.38899107]
[1753103105150,37.9473623,190.81,190.8,16.09899107]
[1753103105738,37.9473623,190.81,190.8,15.38899107]
[1753103105939,37.9473623,190.81,190.8,10.14790093]
[1753103106361,37.9473623,190.81,190.8,15.38899107]
[1753103106561,38.6273623,190.81,190.8,10.14790093]
[1753103106766,38.6273623,190.81,190.79,0.03]
[1753103106939,0.68,190.8,190.79,10.17790093]
[1753103107961,0.68,190.8,190.79,0.03]
[1753103108561,17.46468397,190.8,190.79,0.03]
[1753103109358,22.70577411,190.8,190.79,0.03]
[1753103110113,32.85367504,190.8,190.79,0.03]
[1753103110245,122.65367504,190.8,190.79,0.03]
[1753103110646,112.50577411,190.8,190.79,0.03]
[1753103110851,122.65367504,190.8,190.79,0.03]
[1753103112265,122.65367504,190.8,190.75,0.03]
[1753103112266,8.1008,190.79,190.75,0.03]
[1753103112448,16.78468397,190.72,190.59,1.57]
[1753103112767,16.78468397,190.7,190.6,5.95658971]
[1753103112974,0.68,190.69,190.6,31.24658971]
[1753103113147,16.78468397,190.67,190.61,0.71]
[1753103113350,16.78468397,190.69,190.68,26.0]
[1753103113552,17.46468397,190.69,190.65,36.14790093]
[1753103113988,0.68,190.68,190.65,26.0]
[1753103114185,0.68,190.67,190.59,6.18604196]
[1753103114368,0.68,190.67,190.63,10.14790093]
[1753103114560,0.68,190.67,190.59,11.43289103]
[1753103114761,10.14790093,190.65,190.57,5.24715958]
[1753103114969,39.38,190.64,190.59,10.14790093]
[1753103115174,17.46468397,190.63,190.59,10.14790093]
[1753103115369,0.68,190.62,190.57,26.0]
[1753103115567,0.68,190.61,190.58,10.14790093]
[1753103115783,40.06,190.6,190.54,5.95803581]
[1753103115960,39.38,190.6,190.58,10.14790093]
[1753103116282,39.38,190.6,190.57,10.14790093]
[1753103116457,39.38,190.6,190.58,10.14790093]
[1753103116657,16.78468397,190.65,190.55,26.0]
[1753103116658,17.46468397,190.65,190.55,26.0]
[1753103116874,1.6167,190.66,190.55,26.0]
[1753103116875,16.78468397,190.63,190.55,26.0]
[1753103117057,16.78468397,190.63,190.54,5.95803581]
[1753103117058,40.22,190.62,190.6,10.14790093]
[1753103117255,0.68,190.61,190.6,10.14790093]
[1753103117455,0.68,190.61,190.55,0.71]
[1753103117667,0.68,190.61,190.59,10.14790093]
[1753103117883,0.68,190.61,190.55,26.71]
[1753103118080,0.68,190.69,190.6,10.14790093]
[1753103118275,16.78468397,190.68,190.67,10.14790093]
[1753103118582,39.58,190.69,190.65,0.71]
[1753103118885,39.58,190.69,190.66,0.71]
[1753103119086,16.78468397,190.73,190.68,10.14790093]
[1753103119277,39.58,190.73,190.69,0.71]
[1753103119476,16.78468397,190.71,190.66,26.0]
[1753103119686,0.68,190.7,190.68,10.14790093]
[1753103119993,6.8431122,190.75,190.64,26.0]
[1753103119994,16.78468397,190.68,190.64,26.0]
[1753103120194,0.68,190.67,190.64,10.14790093]
[1753103120369,0.68,190.66,190.65,10.14790093]
[1753103120563,0.68,190.66,190.59,0.71]
[1753103120762,0.68,190.66,190.58,0.71]
[1753103120978,16.78468397,190.64,190.55,18.36788244]
[1753103121268,16.78468397,190.62,190.55,5.24796641]
[1753103121483,40.32,190.61,190.55,5.24796641]
[1753103121884,40.32,190.61,190.59,10.14790093]
[1753103122075,0.68,190.6,190.59,10.14790093]
[1753103122272,0.68,190.6,190.57,10.14790093]
[1753103122588,0.68,190.6,190.54,5.24807761]
[1753103122589,16.78468397,190.58,190.54,10.14790093]
[1753103122795,16.78468397,190.56,190.51,5.27890941]
[1753103122976,17.46468397,190.56,190.51,5.98890941]
[1753103123299,17.46468397,190.56,190.51,5.27890941]
[1753103123473,16.78468397,190.56,190.54,10.14790093]
[1753103123673,0.68,190.55,190.54,10.14790093]
[1753103123888,16.78468397,190.56,190.54,10.14790093]
[1753103124201,0.68,190.55,190.51,31.27906804]
[1753103124408,16.78468397,190.54,190.51,0.03]
[1753103124572,17.46468397,190.54,190.51,10.17790093]
[1753103124773,40.36,190.53,190.51,15.42694382]
[1753103124994,40.36,190.53,190.51,5.27904289]
[1753103125172,0.68,190.52,190.51,0.03]
[1753103125488,17.46468397,190.52,190.51,0.03]
[1753103127288,22.71347674,190.52,190.51,0.03]
[1753103127469,32.86137767,190.52,190.51,0.03]
[1753103127664,16.78468397,190.51,190.39,0.71]
[1753103127891,26.9325849,190.47,190.36,5.25316105]
[1753103128097,16.78468397,190.45,190.35,5.96343173]
[1753103128393,7.5833,190.42,190.24,10.0]
[1753103128594,16.78468397,190.31,190.21,6.61014338]
[1753103128890,16.78468397,190.29,190.27,10.14790093]
[1753103129104,40.02,190.28,190.24,26.0]
[1753103129309,0.68,190.38,190.25,0.71]
[1753103129607,56.80468397,190.37,190.26,26.0]
[1753103129900,16.78468397,190.37,190.27,0.71]
[1753103130102,16.78468397,190.37,190.36,10.14790093]
[1753103130405,57.54468397,190.37,190.31,26.0]
[1753103130571,17.46468397,190.37,190.36,10.14790093]
[1753103130777,40.16,190.37,190.36,10.14790093]
[1753103131003,40.16,190.4,190.36,10.85790093]
[1753103131209,0.68,190.43,190.35,26.0]
[1753103131382,40.14,190.41,190.37,0.7]
[1753103131591,40.14,190.41,190.4,10.14790093]
[1753103132400,40.14,190.41,190.37,31.95291727]
[1753103132583,40.14,190.41,190.4,10.14790093]
[1753103132788,40.14,190.41,190.37,31.95291727]
[1753103132979,40.14,190.41,190.4,10.14790093]
[1753103133502,16.78468397,190.47,190.38,10.14790093]
[1753103133709,16.78468397,190.43,190.38,10.14790093]
[1753103133905,40.18,190.42,190.38,0.7]
[1753103134206,40.88,190.42,190.37,41.4007124]
[1753103134775,40.18,190.42,190.39,10.14790093]
[1753103135711,40.18,190.42,190.4,0.7]
[1753103135904,26.9325849,190.49,190.42,5.2515492]
[1753103136071,26.9325849,190.49,190.44,10.14790093]
[1753103136072,40.14,190.48,190.44,10.14790093]
[1753103136272,11.64756588,190.54,190.47,10.14790093]
[1753103136481,40.14,190.53,190.47,0.7]
[1753103136701,40.14,190.53,190.49,10.14790093]
[1753103136900,40.14,190.53,190.47,0.7]
[1753103137109,0.10968041,190.55,190.51,10.14790093]
[1753103137407,40.12,190.54,190.51,10.84790093]
[1753103137704,0.10968041,190.55,190.53,10.14790093]
[1753103138302,0.10968041,190.55,190.53,26.0]
[1753103138877,0.10968041,190.55,190.53,36.14790093]
[1753103139600,0.10968041,190.55,190.53,26.7]
[1753103139793,0.10968041,190.55,190.54,10.14790093]
[1753103140195,0.10968041,190.55,190.54,10.84790093]
[1753103140397,0.10968041,190.55,190.54,0.7]
[1753103140709,0.10968041,190.55,190.54,10.84790093]
[1753103141403,0.10968041,190.55,190.54,16.09614276]
[1753103142490,0.10968041,190.55,190.54,10.84790093]
[1753103142695,0.10968041,190.55,190.54,36.14790093]
[1753103142897,0.10968041,190.55,190.54,26.0]
[1753103143098,10.25758134,190.55,190.5,10.14790093]
[1753103143307,0.7,190.54,190.5,10.14790093]
[1753103143812,0.7,190.54,190.49,26.03]
[1753103144004,0.10968041,190.55,190.5,10.14790093]
[1753103144205,40.0,190.54,190.51,10.14790093]
[1753103144501,40.7,190.54,190.49,0.03]
[1753103144706,0.09936777,190.51,190.49,0.03]
[1753103145002,17.48468397,190.5,190.49,0.03]
[1753103145205,27.6325849,190.5,190.49,0.03]
[1753103145787,17.48468397,190.5,190.49,0.03]
[1753103145992,27.6325849,190.5,190.49,0.03]
[1753103146194,17.48468397,190.5,190.49,0.03]
[1753103146588,40.03936777,190.51,190.49,0.03]
[1753103147091,40.73936777,190.51,190.49,0.03]
[1753103147293,50.8872687,190.51,190.49,0.03]
[1753103148709,40.73936777,190.51,190.49,0.03]
[1753103148911,40.03936777,190.51,190.49,0.03]
[1753103149589,0.09936777,190.51,190.5,36.84790093]
[1753103150395,0.09936777,190.51,190.5,5.94934383]
[1753103150612,0.09936777,190.51,190.5,16.09724476]
[1753103152095,0.09936777,190.51,190.5,10.14790093]
[1753103152293,0.09936777,190.51,190.5,15.39724476]
[1753103152695,0.09936777,190.51,190.5,16.09724476]
[1753103155796,0.10709749,190.52,190.5,16.09724476]
[1753103155797,1e-08,190.52,190.51,26.0]
[1753103155994,0.09483167,190.54,190.51,46.99580186]
[1753103156207,0.09483167,190.54,190.53,10.14790093]
[1753103156603,0.09483167,190.54,190.53,16.09641822]
[1753103157597,0.09483167,190.54,190.53,5.94851729]
[1753103157808,0.09483167,190.54,190.53,16.09641822]
[1753103160202,0.10339516,190.6,190.53,16.09641822]
[1753103160203,1e-08,190.56,190.55,26.0]
[1753103160400,1e-08,190.56,190.55,10.14790093]
[1753103160601,1e-08,190.56,190.55,10.84790093]
[1753103160797,0.10339516,190.6,190.57,26.0]
[1753103161124,0.10339516,190.6,190.56,40.3]
[1753103161329,0.10339516,190.6,190.57,10.14790093]
[1753103161623,0.10339516,190.6,190.58,26.0]
[1753103161931,37.78,190.72,190.62,26.0]
[1753103161932,0.1,190.71,190.62,26.0]
[1753103162317,0.7,190.7,190.66,10.14790093]
[1753103162535,0.7,190.7,190.67,10.14790093]
[1753103162819,0.1,190.71,190.69,10.14790093]
[1753103163024,0.1,190.71,190.7,36.14790093]
[1753103163401,0.1,190.71,190.7,36.81790093]
[1753103163597,0.06,190.75,190.7,36.81790093]
[1753103163822,0.06,190.75,190.74,20.29580186]
[1753103164126,0.7,190.84,190.82,10.14790093]
[1753103164627,0.16217468,190.83,190.82,10.14790093]
[1753103165202,0.16217468,190.83,190.82,16.05844175]
[1753103165506,0.16217468,190.83,190.82,56.05844175]
[1753103165814,0.16217468,190.83,190.77,26.67]
[1753103166027,0.86217468,190.83,190.8,10.14790093]
[1753103166819,0.7,190.82,190.78,10.14790093]
[1753103167130,0.7,190.81,190.78,26.0]
[1753103167923,0.7,190.81,190.77,10.14790093]
[1753103168435,0.7,190.8,190.76,26.0]
[1753103168607,16.78468397,190.82,190.77,10.14790093]
[1753103168911,0.7,190.82,190.78,10.14790093]
[1753103169120,0.16217468,190.83,190.81,10.14790093]
[1753103169299,0.16217468,190.83,190.82,10.14790093]
[1753103169701,0.16217468,190.83,190.82,10.81790093]
[1753103170621,0.16217468,190.83,190.82,10.14790093]
[1753103172933,0.16217468,190.83,190.82,36.14790093]
[1753103174308,0.16217468,190.83,190.81,10.14790093]
[1753103174524,0.16217468,190.83,190.82,10.14790093]
[1753103175322,0.16217468,190.83,190.82,10.81790093]
[1753103175508,0.16217468,190.83,190.82,16.05844175]
[1753103177531,0.16217468,190.83,190.82,16.58249583]
[1753103178415,0.16217468,190.83,190.82,56.34249583]
[1753103178814,0.16217468,190.83,190.82,31.91054082]
[1753103179029,0.16217468,190.83,190.82,55.81844175]
[1753103179534,0.16217468,190.83,190.82,45.67054082]
[1753103179836,0.16217468,190.83,190.82,55.81844175]
[1753103180829,0.16217468,190.83,190.82,45.67054082]
[1753103181030,0.16217468,190.83,190.82,55.81844175]
[1753103181927,0.16217468,190.83,190.82,45.67054082]
[1753103182129,0.16217468,190.83,190.82,55.81844175]
[1753103183124,0.16217468,190.83,190.82,45.67054082]
[1753103183444,0.16217468,190.83,190.82,55.81844175]
[1753103183930,0.16217468,190.83,190.79,44.90136485]
[1753103184139,0.86217468,190.83,190.8,10.14790093]
[1753103184310,0.76,190.83,190.8,10.14790093]
[1753103184521,0.76,190.83,190.78,5.24158134]
[1753103184522,0.76,190.83,190.82,10.14790093]
[1753103184711,0.16662828,190.83,190.82,10.14790093]
[1753103185155,0.16662828,190.83,190.81,36.14790093]
[1753103185336,0.7,190.82,190.77,44.90187697]
[1753103185539,0.7,190.81,190.77,10.14790093]
[1753103185838,10.84790093,190.81,190.75,10.14790093]
[1753103186025,0.7,190.8,190.79,26.0]
[1753103186226,0.7,190.8,190.76,10.14790093]
[1753103186435,10.14790093,190.82,190.76,10.14790093]
[1753103186436,0.7,190.79,190.76,10.14790093]
[1753103186622,16.78468397,190.81,190.73,5.24291969]
[1753103186828,0.7,190.78,190.76,36.14790093]
[1753103187336,0.7,190.78,190.76,10.14790093]
[1753103187716,0.7,190.78,190.76,26.0]
[1753103187918,10.14790093,190.78,190.72,15.39112814]
[1753103188118,10.14790093,190.77,190.72,10.14790093]
[1753103188423,10.14790093,190.77,190.7,5.24361108]
[1753103188424,0.7,190.76,190.71,10.14790093]
[1753103188620,0.7,190.75,190.74,26.0]
[1753103188839,0.7,190.75,190.7,5.24361108]
[1753103189142,10.14790093,190.77,190.74,26.0]
[1753103189636,17.48468397,190.8,190.76,10.14790093]
[1753103190038,16.78468397,190.82,190.77,10.14790093]
[1753103190333,1.77212828,190.83,190.8,36.14790093]
[1753103190544,0.86662828,190.83,190.81,10.14790093]
[1753103190717,0.16662828,190.83,190.81,10.14790093]
[1753103190918,0.7,190.82,190.8,10.14790093]
[1753103191831,0.16662828,190.83,190.81,10.14790093]
[1753103192231,0.86662828,190.83,190.78,5.24163958]
[1753103192426,0.7,190.82,190.78,5.24163958]
[1753103194120,17.48468397,190.81,190.77,26.0]
[1753103194347,0.7,190.8,190.78,26.0]
[1753103194721,27.6325849,190.79,190.76,26.0]
[1753103195035,10.14790093,190.77,190.71,10.14790093]
[1753103195331,10.14790093,190.75,190.7,10.14790093]
[1753103195539,0.7,190.74,190.73,26.0]
[1753103195721,0.7,190.74,190.7,10.14790093]
[1753103195917,0.7,190.73,190.7,10.14790093]
[1753103196138,0.7,190.73,190.72,26.0]
[1753103196537,13.26729379,190.83,190.67,40.21]
[1753103196538,0.7,190.79,190.73,26.0]
[1753103196741,0.7,190.79,190.7,18.35343369]
[1753103196742,0.16662828,190.83,190.79,26.0]
[1753103196945,0.16662828,190.83,190.82,10.14790093]
[1753103197122,0.86662828,190.83,190.82,26.0]
[1753103197323,11.01452921,190.83,190.78,10.14790093]
[1753103197525,16.78468397,190.81,190.77,26.0]
[1753103197741,16.78468397,190.81,190.77,36.14790093]
[1753103197742,0.7,190.8,190.77,36.14790093]
[1753103198026,0.7,190.79,190.77,36.14790093]
[1753103198646,0.7,190.79,190.77,26.0]
[1753103198821,0.7,190.79,190.76,10.14790093]
[1753103199154,17.48468397,190.78,190.72,5.24322305]
[1753103199359,0.7,190.78,190.73,10.14790093]
[1753103199661,0.7,190.77,190.74,26.0]
[1753103199824,0.7,190.76,190.73,10.14790093]
[1753103200025,0.7,190.76,190.75,26.0]
[1753103200527,27.6325849,190.76,190.71,10.14790093]
[1753103200740,0.7,190.75,190.71,10.14790093]
[1753103200949,0.7,190.74,190.71,10.14790093]
[1753103201147,0.7,190.74,190.73,26.0]
[1753103201425,0.7,190.74,190.67,39.5]
[1753103201426,0.7,190.74,190.7,36.14790093]
[1753103201632,0.7,190.74,190.73,26.0]
[1753103202436,0.7,190.74,190.64,10.14790093]
[1753103202437,16.78468397,190.73,190.64,10.14790093]
[1753103202634,16.78468397,190.71,190.65,10.14790093]
[1753103202858,26.9325849,190.71,190.66,26.0]
[1753103203050,0.7,190.7,190.66,10.14790093]
[1753103203538,0.7,190.73,190.69,10.14790093]
[1753103203848,0.7,190.73,190.66,26.0]
[1753103203849,26.9325849,190.75,190.67,0.71]
[1753103204028,26.9325849,190.7,190.67,26.0]
[1753103204231,10.84790093,190.69,190.63,10.14790093]
[1753103204430,10.84790093,190.69,190.61,5.95629009]
[1753103204431,17.48468397,190.68,190.6,0.03]
[1753103204645,10.14790093,190.67,190.62,10.14790093]
[1753103204841,0.7,190.66,190.6,0.03]
[1753103205044,0.7,190.66,190.61,10.14790093]
[1753103205246,0.7,190.66,190.62,26.0]
[1753103205445,0.7,190.65,190.61,10.14790093]
[1753103205644,0.7,190.65,190.62,10.14790093]
[1753103205844,0.7,190.65,190.62,36.14790093]
[1753103206046,0.7,190.64,190.62,26.0]
[1753103206248,0.7,190.63,190.6,0.03]
[1753103206555,0.7,190.63,190.62,26.0]
[1753103206734,0.7,190.63,190.6,10.17790093]
[1753103206939,0.7,190.63,190.6,0.03]